[Event "Late-Titled-Tuesday-Blitz-June-25-2024"]
[Site "Chess.com"]
[Date "2024.06.25"]
[Round "1"]
[White "wonderfultime"]
[Black "zajka-molotok"]
[Result "1/2-1/2"]
[WhiteElo "3047"]
[BlackElo "2526"]
[TimeControl "180+1"]
[EndTime "14:08:05 PDT"]
[Termination "Game drawn by repetition"]

1. d4 {[%clk 0:02:59.3]} 1... d5 {[%clk 0:02:58.2]} 2. Nf3 {[%clk 0:02:59.2]}
2... Nf6 {[%clk 0:02:56.4]} 3. Bf4 {[%clk 0:02:59.7]} 3... c5 {[%clk 0:02:55.9]}
4. c3 {[%clk 0:02:59.7]} 4... e6 {[%clk 0:02:53.3]} 5. e3 {[%clk 0:02:59.8]}
5... Bd6 {[%clk 0:02:53.7]} 6. Nbd2 {[%clk 0:02:59]} 6... O-O {[%clk 0:02:52.4]}
7. Bd3 {[%clk 0:02:59.2]} 7... Bxf4 {[%clk 0:02:44.7]} 8. exf4 {[%clk
0:02:59.2]} 8... b6 {[%clk 0:02:43.7]} 9. Qe2 {[%clk 0:02:58.2]} 9... a5 {[%clk
0:02:40.1]} 10. O-O {[%clk 0:02:58.4]} 10... Ba6 {[%clk 0:02:39.9]} 11. Bxa6
{[%clk 0:02:59]} 11... Nxa6 {[%clk 0:02:40.8]} 12. Rfe1 {[%clk 0:02:59.6]} 12...
Qd6 {[%clk 0:02:38.4]} 13. g3 {[%clk 0:02:55.2]} 13... Nb8 {[%clk 0:02:37.6]}
14. Nf1 {[%clk 0:02:53.9]} 14... Nc6 {[%clk 0:02:36]} 15. Rad1 {[%clk
0:02:53.7]} 15... Rfd8 {[%clk 0:02:29.1]} 16. Ne3 {[%clk 0:02:51.7]} 16... a4
{[%clk 0:02:23.8]} 17. a3 {[%clk 0:02:49.2]} 17... g6 {[%clk 0:02:19.9]} 18. h4
{[%clk 0:02:36.3]} 18... cxd4 {[%clk 0:02:09.4]} 19. Nxd4 {[%clk 0:02:35]} 19...
Nxd4 {[%clk 0:02:09.9]} 20. Rxd4 {[%clk 0:02:35.9]} 20... Qc6 {[%clk 0:02:03.7]}
21. c4 {[%clk 0:02:17.6]} 21... dxc4 {[%clk 0:02:00]} 22. Rxc4 {[%clk
0:02:18.5]} 22... Qb5 {[%clk 0:01:54.1]} 23. Qc2 {[%clk 0:02:10.5]} 23... Nd5
{[%clk 0:01:44.9]} 24. Ng4 {[%clk 0:02:01.1]} 24... Qa6 {[%clk 0:01:29.6]} 25.
Rc1 {[%clk 0:01:44.5]} 25... Qb7 {[%clk 0:01:26.7]} 26. Qe4 {[%clk 0:01:37.4]}
26... Rd7 {[%clk 0:01:14.9]} 27. Qe5 {[%clk 0:01:30.7]} 27... h5 {[%clk
0:01:10.6]} 28. Nh2 {[%clk 0:00:51.1]} 28... Rad8 {[%clk 0:01:08]} 29. Rxa4
{[%clk 0:00:42.3]} 29... b5 {[%clk 0:01:00.7]} 30. Rd4 {[%clk 0:00:39.4]} 30...
b4 {[%clk 0:00:59.8]} 31. axb4 {[%clk 0:00:35.8]} 31... Nxb4 {[%clk 0:01:00.7]}
32. Rxd7 {[%clk 0:00:35.5]} 32... Qxd7 {[%clk 0:00:59.7]} 33. Qe4 {[%clk
0:00:31.1]} 33... Nd3 {[%clk 0:00:55.9]} 34. Rd1 {[%clk 0:00:30.8]} 34... Qb5
{[%clk 0:00:54.7]} 35. Nf3 {[%clk 0:00:29.2]} 35... Rd5 {[%clk 0:00:47.1]} 36.
Ng5 {[%clk 0:00:24.3]} 36... Nxb2 {[%clk 0:00:22.2]} 37. Ra1 {[%clk 0:00:24.6]}
37... Rd1+ {[%clk 0:00:17.6]} 38. Rxd1 {[%clk 0:00:25.1]} 38... Nxd1 {[%clk
0:00:18.5]} 39. Qd4 {[%clk 0:00:25.7]} 39... Qd5 {[%clk 0:00:17.4]} 40. Qa7
{[%clk 0:00:20.7]} 40... Qf5 {[%clk 0:00:14.1]} 41. Qd4 {[%clk 0:00:18.8]} 41...
Qd5 {[%clk 0:00:13.3]} 42. Qf6 {[%clk 0:00:19.4]} 42... Qd7 {[%clk 0:00:10.8]}
43. Ne4 {[%clk 0:00:18.8]} 43... Qd5 {[%clk 0:00:09.3]} 44. Qe5 {[%clk
0:00:10.3]} 44... Qxe5 {[%clk 0:00:08.8]} 45. fxe5 {[%clk 0:00:11.2]} 45... Nb2
{[%clk 0:00:08.7]} 46. f4 {[%clk 0:00:11.1]} 46... Nd3 {[%clk 0:00:08.7]} 47.
Kf1 {[%clk 0:00:11.2]} 47... Nb4 {[%clk 0:00:08.6]} 48. Ke2 {[%clk 0:00:11.7]}
48... Nd5 {[%clk 0:00:09.2]} 49. Kd3 {[%clk 0:00:12.4]} 49... Kf8 {[%clk
0:00:08.7]} 50. Kd4 {[%clk 0:00:11.3]} 50... Ke7 {[%clk 0:00:09.2]} 51. Nd6
{[%clk 0:00:11.5]} 51... Nc7 {[%clk 0:00:08.1]} 52. Ke4 {[%clk 0:00:11.7]} 52...
Nd5 {[%clk 0:00:08]} 53. Kf3 {[%clk 0:00:11.5]} 53... Nc3 {[%clk 0:00:07.7]} 54.
g4 {[%clk 0:00:10.5]} 54... hxg4+ {[%clk 0:00:08.1]} 55. Kxg4 {[%clk 0:00:11.4]}
55... Nd5 {[%clk 0:00:08.1]} 56. Ne4 {[%clk 0:00:11]} 56... Ne3+ {[%clk
0:00:07.7]} 57. Kg5 {[%clk 0:00:11]} 57... Nd5 {[%clk 0:00:07.5]} 58. Nd6 {[%clk
0:00:08.7]} 58... Ne3 {[%clk 0:00:07.2]} 59. Ne4 {[%clk 0:00:09.3]} 59... Nd5
{[%clk 0:00:07.1]} 60. Nd6 {[%clk 0:00:09.9]} 60... Ne3 {[%clk 0:00:07.3]} 61.
Ne4 {[%clk 0:00:10.6]} 1/2-1/2

[Event "Late-Titled-Tuesday-Blitz-June-25-2024"]
[Site "Chess.com"]
[Date "2024.06.25"]
[Round "1"]
[White "ALRS-SPS"]
[Black "fin"]
[Result "0-1"]
[WhiteElo "2443"]
[BlackElo "2748"]
[TimeControl "180+1"]
[EndTime "14:08:08 PDT"]
[Termination "fin won by checkmate"]

1. e4 {[%clk 0:03:00.9]} 1... c5 {[%clk 0:02:57.8]} 2. Nf3 {[%clk 0:03:00.8]}
2... Nc6 {[%clk 0:02:57.4]} 3. d4 {[%clk 0:03:00.5]} 3... cxd4 {[%clk
0:02:57.6]} 4. Nxd4 {[%clk 0:03:00.6]} 4... Nf6 {[%clk 0:02:58.3]} 5. Nc3 {[%clk
0:03:00]} 5... e5 {[%clk 0:02:58.6]} 6. Ndb5 {[%clk 0:02:59.7]} 6... d6 {[%clk
0:02:58.9]} 7. Bg5 {[%clk 0:02:59]} 7... a6 {[%clk 0:02:58.8]} 8. Na3 {[%clk
0:02:59.5]} 8... b5 {[%clk 0:02:59.2]} 9. Nd5 {[%clk 0:02:59.9]} 9... Be7 {[%clk
0:02:59.1]} 10. Bxf6 {[%clk 0:03:00]} 10... Bxf6 {[%clk 0:02:59.5]} 11. c3
{[%clk 0:03:00.5]} 11... Bg5 {[%clk 0:02:59.5]} 12. Nc2 {[%clk 0:02:59.4]} 12...
Rb8 {[%clk 0:02:59.6]} 13. a4 {[%clk 0:02:49.3]} 13... bxa4 {[%clk 0:02:59.1]}
14. Ncb4 {[%clk 0:02:49.8]} 14... Nxb4 {[%clk 0:02:59.5]} 15. Nxb4 {[%clk
0:02:49.5]} 15... O-O {[%clk 0:02:59.8]} 16. Be2 {[%clk 0:02:41.9]} 16... Bd7
{[%clk 0:02:50.6]} 17. Bxa6 {[%clk 0:02:36.7]} 17... Kh8 {[%clk 0:02:45.6]} 18.
O-O {[%clk 0:02:35.5]} 18... f5 {[%clk 0:02:45.7]} 19. exf5 {[%clk 0:02:34.6]}
19... Rxf5 {[%clk 0:02:42.4]} 20. Qxd6 {[%clk 0:02:30.2]} 20... Be7 {[%clk
0:02:40.2]} 21. Qd3 {[%clk 0:02:22.7]} 21... Bxb4 {[%clk 0:02:35.4]} 22. cxb4
{[%clk 0:02:22.8]} 22... e4 {[%clk 0:02:10.6]} 23. Qxe4 {[%clk 0:02:02.2]} 23...
Qf6 {[%clk 0:02:10.7]} 24. b5 {[%clk 0:01:45.6]} 24... Bxb5 {[%clk 0:01:44.8]}
25. Bxb5 {[%clk 0:01:40.5]} 25... Rfxb5 {[%clk 0:01:45.7]} 26. Rxa4 {[%clk
0:01:36.9]} 26... Rxb2 {[%clk 0:01:45.3]} 27. Ra8 {[%clk 0:01:35.4]} 27... h6
{[%clk 0:01:41.2]} 28. Rxb8+ {[%clk 0:01:30.9]} 28... Rxb8 {[%clk 0:01:42.1]}
29. Qe2 {[%clk 0:01:27]} 29... Qc6 {[%clk 0:01:33.6]} 30. Re1 {[%clk 0:01:23.4]}
30... Rd8 {[%clk 0:01:33.5]} 31. h3 {[%clk 0:01:21.9]} 31... Qc5 {[%clk
0:01:24.1]} 32. Qe3 {[%clk 0:01:15.9]} 32... Qc6 {[%clk 0:01:22.1]} 33. Qe4
{[%clk 0:01:12.5]} 33... Qc5 {[%clk 0:01:20.5]} 34. Qe3 {[%clk 0:01:12.2]} 34...
Qf5 {[%clk 0:01:12.1]} 35. Re2 {[%clk 0:01:02.6]} 35... Rf8 {[%clk 0:01:05.1]}
36. Kh2 {[%clk 0:01:00.3]} 36... Qd5 {[%clk 0:00:59.6]} 37. Rd2 {[%clk 0:00:55]}
37... Qb5 {[%clk 0:00:55.7]} 38. Re2 {[%clk 0:00:48.2]} 38... Qb8+ {[%clk
0:00:49.6]} 39. Qg3 {[%clk 0:00:47]} 39... Qb4 {[%clk 0:00:48.3]} 40. Qe3 {[%clk
0:00:43.3]} 40... Qd6+ {[%clk 0:00:47.3]} 41. Qg3 {[%clk 0:00:42.4]} 41... Qf6
{[%clk 0:00:45.8]} 42. f3 {[%clk 0:00:39.7]} 42... Qf5 {[%clk 0:00:42.3]} 43.
Qe5 {[%clk 0:00:39.2]} 43... Qg6 {[%clk 0:00:40]} 44. Re4 {[%clk 0:00:38.1]}
44... Qf7 {[%clk 0:00:36.1]} 45. Qe6 {[%clk 0:00:36.4]} 45... Qh5 {[%clk
0:00:33]} 46. Qe7 {[%clk 0:00:33.5]} 46... Rf7 {[%clk 0:00:30.2]} 47. Qe8+
{[%clk 0:00:33.3]} 47... Kh7 {[%clk 0:00:30.4]} 48. Qe5 {[%clk 0:00:28.9]} 48...
Rf5 {[%clk 0:00:30.1]} 49. Qg3 {[%clk 0:00:27.8]} 49... Qf7 {[%clk 0:00:29.5]}
50. Rg4 {[%clk 0:00:27.3]} 50... Rd5 {[%clk 0:00:28.6]} 51. Rf4 {[%clk
0:00:25.4]} 51... Qd7 {[%clk 0:00:28.7]} 52. Re4 {[%clk 0:00:23.6]} 52... Rd2
{[%clk 0:00:27.6]} 53. Qg4 {[%clk 0:00:22.4]} 53... Qc7+ {[%clk 0:00:26.3]} 54.
Qg3 {[%clk 0:00:22.7]} 54... Qf7 {[%clk 0:00:22]} 55. Rf4 {[%clk 0:00:22.2]}
55... Qa7 {[%clk 0:00:15.8]} 56. Re4 {[%clk 0:00:20.7]} 56... Rd1 {[%clk
0:00:13.8]} 57. Qf4 {[%clk 0:00:16.1]} 57... Qg1+ {[%clk 0:00:13]} 58. Kg3
{[%clk 0:00:16.6]} 58... Rd5 {[%clk 0:00:11.1]} 59. Re5 {[%clk 0:00:14.1]} 59...
Rd6 {[%clk 0:00:10.2]} 60. Qe4+ {[%clk 0:00:13.3]} 60... Rg6+ {[%clk 0:00:10.6]}
61. Kf4 {[%clk 0:00:09.3]} 61... Qxg2 {[%clk 0:00:11.1]} 62. Re6 {[%clk
0:00:08.4]} 62... Qg5# {[%clk 0:00:11.6]} 0-1

[Event "Late-Titled-Tuesday-Blitz-June-25-2024"]
[Site "Chess.com"]
[Date "2024.06.25"]
[Round "1"]
[White "Crazy_girl99"]
[Black "jbking07"]
[Result "1-0"]
[WhiteElo "2695"]
[BlackElo "2400"]
[TimeControl "180+1"]
[EndTime "14:08:08 PDT"]
[Termination "Crazy_girl99 won by checkmate"]

1. e4 {[%clk 0:03:00.9]} 1... c5 {[%clk 0:03:00.1]} 2. Nf3 {[%clk 0:03:00.4]}
2... d6 {[%clk 0:03:00.5]} 3. d4 {[%clk 0:03:00.5]} 3... cxd4 {[%clk 0:03:01.4]}
4. Nxd4 {[%clk 0:03:01.1]} 4... Nf6 {[%clk 0:03:01.7]} 5. Nc3 {[%clk 0:03:00.9]}
5... Nc6 {[%clk 0:03:02.1]} 6. Bg5 {[%clk 0:02:54.8]} 6... e6 {[%clk 0:03:00.8]}
7. f4 {[%clk 0:02:51.1]} 7... h6 {[%clk 0:02:53]} 8. Bh4 {[%clk 0:02:46.7]} 8...
a6 {[%clk 0:02:52.2]} 9. Nxc6 {[%clk 0:02:27.6]} 9... bxc6 {[%clk 0:02:42]} 10.
e5 {[%clk 0:02:27.5]} 10... g5 {[%clk 0:02:16.8]} 11. fxg5 {[%clk 0:02:23.6]}
11... Nd5 {[%clk 0:02:09.1]} 12. Nxd5 {[%clk 0:02:13.7]} 12... cxd5 {[%clk
0:01:48.7]} 13. Qh5 {[%clk 0:02:09.5]} 13... Bg7 {[%clk 0:01:27.5]} 14. g6
{[%clk 0:01:58.4]} 14... Qa5+ {[%clk 0:01:23.4]} 15. c3 {[%clk 0:01:58]} 15...
Bxe5 {[%clk 0:01:11.5]} 16. gxf7+ {[%clk 0:01:54.8]} 16... Kf8 {[%clk
0:01:11.8]} 17. Bd3 {[%clk 0:01:20.8]} 17... d4 {[%clk 0:01:03]} 18. Qf3 {[%clk
0:00:56.2]} 18... Ra7 {[%clk 0:00:33.9]} 19. O-O {[%clk 0:00:52.8]} 19... dxc3
{[%clk 0:00:23.5]} 20. bxc3 {[%clk 0:00:52.5]} 20... Bb7 {[%clk 0:00:14.6]} 21.
Be7+ {[%clk 0:00:39.9]} 21... Kxe7 {[%clk 0:00:09.8]} 22. f8=Q+ {[%clk
0:00:40.3]} 22... Rxf8 {[%clk 0:00:10.4]} 23. Qxf8+ {[%clk 0:00:40.9]} 23... Kd7
{[%clk 0:00:11.3]} 24. Rf7+ {[%clk 0:00:39.5]} 24... Kc6 {[%clk 0:00:11.6]} 25.
Qe8+ {[%clk 0:00:35.8]} 25... Kd5 {[%clk 0:00:08.7]} 26. c4+ {[%clk 0:00:13.8]}
26... Kc5 {[%clk 0:00:07.3]} 27. Rb1 {[%clk 0:00:07.6]} 27... Qd2 {[%clk
0:00:05.2]} 28. Rfxb7 {[%clk 0:00:02.9]} 28... Rxb7 {[%clk 0:00:02.1]} 29. Qc8+
{[%clk 0:00:02.9]} 29... Kd4 {[%clk 0:00:01.2]} 30. Qxb7 {[%clk 0:00:03]} 30...
Qe3+ {[%clk 0:00:01.2]} 31. Kh1 {[%clk 0:00:03]} 31... Qxd3 {[%clk 0:00:01.1]}
32. Qb6+ {[%clk 0:00:03.4]} 32... Ke4 {[%clk 0:00:01.5]} 33. Re1+ {[%clk
0:00:03.5]} 33... Kf4 {[%clk 0:00:01.9]} 34. Qf2+ {[%clk 0:00:03.5]} 34... Kg5
{[%clk 0:00:01.9]} 35. Qe3+ {[%clk 0:00:03.8]} 35... Qxe3 {[%clk 0:00:02.1]} 36.
Rxe3 {[%clk 0:00:04.5]} 36... Kf4 {[%clk 0:00:03]} 37. Re2 {[%clk 0:00:04.4]}
37... d5 {[%clk 0:00:03.3]} 38. c5 {[%clk 0:00:04.4]} 38... d4 {[%clk 0:00:03]}
39. c6 {[%clk 0:00:04.8]} 39... Bc7 {[%clk 0:00:02.6]} 40. Rxe6 {[%clk
0:00:03.6]} 40... d3 {[%clk 0:00:03.1]} 41. Re7 {[%clk 0:00:01.8]} 41... d2
{[%clk 0:00:02.5]} 42. Rd7 {[%clk 0:00:01.5]} 42... Ba5 {[%clk 0:00:02.8]} 43.
h3 {[%clk 0:00:01]} 43... Kf5 {[%clk 0:00:02.1]} 44. g4+ {[%clk 0:00:01.5]}
44... Ke4 {[%clk 0:00:02.3]} 45. Kg2 {[%clk 0:00:02]} 45... Ke3 {[%clk
0:00:02.5]} 46. h4 {[%clk 0:00:02.2]} 46... Ke2 {[%clk 0:00:02.7]} 47. g5 {[%clk
0:00:02.6]} 47... hxg5 {[%clk 0:00:03.1]} 48. hxg5 {[%clk 0:00:02.7]} 48... d1=Q
{[%clk 0:00:04]} 49. Rxd1 {[%clk 0:00:02.2]} 49... Kxd1 {[%clk 0:00:04.9]} 50.
g6 {[%clk 0:00:02.8]} 50... Bc3 {[%clk 0:00:01.9]} 51. c7 {[%clk 0:00:02.9]}
51... Kc2 {[%clk 0:00:02.8]} 52. c8=Q {[%clk 0:00:03.4]} 52... Kb2 {[%clk
0:00:03.5]} 53. Qxc3+ {[%clk 0:00:03.6]} 53... Kxc3 {[%clk 0:00:03.7]} 54. g7
{[%clk 0:00:04.2]} 54... Kb2 {[%clk 0:00:04.5]} 55. g8=Q {[%clk 0:00:04.8]}
55... Ka3 {[%clk 0:00:04.8]} 56. Qb3# {[%clk 0:00:05.7]} 1-0

[Event "Late-Titled-Tuesday-Blitz-June-25-2024"]
[Site "Chess.com"]
[Date "2024.06.25"]
[Round "1"]
[White "chessbaerchen"]
[Black "glebus008"]
[Result "0-1"]
[WhiteElo "2636"]
[BlackElo "2387"]
[TimeControl "180+1"]
[EndTime "14:08:10 PDT"]
[Termination "glebus008 won by resignation"]

1. e4 {[%clk 0:02:59.2]} 1... Nc6 {[%clk 0:02:59.3]} 2. d4 {[%clk 0:02:58.1]}
2... d5 {[%clk 0:02:58.8]} 3. e5 {[%clk 0:02:58.1]} 3... f6 {[%clk 0:02:58.8]}
4. f4 {[%clk 0:02:57]} 4... Bf5 {[%clk 0:02:57.6]} 5. c3 {[%clk 0:02:53.9]} 5...
e6 {[%clk 0:02:57.8]} 6. Nf3 {[%clk 0:02:52.9]} 6... Be7 {[%clk 0:02:57.8]} 7.
Bd3 {[%clk 0:02:52.7]} 7... Nh6 {[%clk 0:02:58]} 8. O-O {[%clk 0:02:52.5]} 8...
O-O {[%clk 0:02:58.1]} 9. Be3 {[%clk 0:02:48]} 9... Bxd3 {[%clk 0:02:54.3]} 10.
Qxd3 {[%clk 0:02:48.9]} 10... fxe5 {[%clk 0:02:54.7]} 11. fxe5 {[%clk
0:02:48.6]} 11... Nf5 {[%clk 0:02:54.6]} 12. Bf2 {[%clk 0:02:47.7]} 12... Qe8
{[%clk 0:02:53.9]} 13. Nbd2 {[%clk 0:02:43.9]} 13... Qg6 {[%clk 0:02:53.9]} 14.
Qb5 {[%clk 0:02:38]} 14... Rab8 {[%clk 0:02:40]} 15. Rae1 {[%clk 0:02:28.2]}
15... Rf7 {[%clk 0:02:39]} 16. a4 {[%clk 0:02:20.6]} 16... h5 {[%clk 0:02:37.4]}
17. b4 {[%clk 0:02:14.7]} 17... Qh7 {[%clk 0:02:35.2]} 18. Kh1 {[%clk
0:02:11.8]} 18... g5 {[%clk 0:02:34.4]} 19. Ng1 {[%clk 0:01:58.2]} 19... g4
{[%clk 0:02:31.2]} 20. Qe2 {[%clk 0:01:43.6]} 20... Rbf8 {[%clk 0:02:29]} 21. g3
{[%clk 0:01:37.1]} 21... Bg5 {[%clk 0:02:07.6]} 22. Nb3 {[%clk 0:01:31.4]} 22...
b6 {[%clk 0:02:04.8]} 23. Qd3 {[%clk 0:01:15.2]} 23... Nce7 {[%clk 0:01:29.8]}
24. Ne2 {[%clk 0:01:11.9]} 24... Ne3 {[%clk 0:01:09.9]} 25. Qxh7+ {[%clk
0:01:01.9]} 25... Kxh7 {[%clk 0:01:10.8]} 26. Bxe3 {[%clk 0:00:54.9]} 26...
Rxf1+ {[%clk 0:01:11.7]} 27. Rxf1 {[%clk 0:00:52.6]} 27... Rxf1+ {[%clk
0:01:12.6]} 28. Kg2 {[%clk 0:00:51.9]} 28... Rf5 {[%clk 0:01:08.7]} 29. Bxg5
{[%clk 0:00:50.4]} 29... Rxg5 {[%clk 0:01:09.5]} 30. Nf4 {[%clk 0:00:50.1]}
30... Rg6 {[%clk 0:00:42.5]} 31. Nxg6 {[%clk 0:00:40.7]} 31... Kxg6 {[%clk
0:00:43.4]} 32. Nc1 {[%clk 0:00:39.8]} 32... Kf5 {[%clk 0:00:41.8]} 33. Kf2
{[%clk 0:00:37.6]} 33... Ke4 {[%clk 0:00:41.7]} 34. Ke2 {[%clk 0:00:38.2]} 34...
Nf5 {[%clk 0:00:37.2]} 35. Nd3 {[%clk 0:00:38.2]} 35... Ne7 {[%clk 0:00:30.7]}
36. Nf4 {[%clk 0:00:36.5]} 36... h4 {[%clk 0:00:21.9]} 37. Nxe6 {[%clk
0:00:33.7]} 37... h3 {[%clk 0:00:19.3]} 38. Nxc7 {[%clk 0:00:29.8]} 38... Nf5
{[%clk 0:00:19.6]} 39. Ne6 {[%clk 0:00:29.4]} 39... Nxg3+ {[%clk 0:00:18.2]} 40.
Kf2 {[%clk 0:00:23.7]} 40... Nf5 {[%clk 0:00:18.3]} 41. Ke2 {[%clk 0:00:19.8]}
41... Ng3+ {[%clk 0:00:17.2]} 42. Kf2 {[%clk 0:00:19.3]} 42... Nf5 {[%clk
0:00:17.5]} 43. Ng5+ {[%clk 0:00:19.4]} 43... Kd3 {[%clk 0:00:17.5]} 44. e6
{[%clk 0:00:19.3]} 44... Kxc3 {[%clk 0:00:17.7]} 45. Nf7 {[%clk 0:00:17.2]}
45... Kxd4 {[%clk 0:00:16.5]} 46. Ke2 {[%clk 0:00:16.6]} 46... g3 {[%clk
0:00:15.5]} 47. Ng5 {[%clk 0:00:13.1]} 47... gxh2 {[%clk 0:00:13.5]} 48. Nf3+
{[%clk 0:00:13.1]} 48... Kc4 {[%clk 0:00:13.4]} 49. Nxh2 {[%clk 0:00:13.4]}
49... Kxb4 {[%clk 0:00:13.8]} 50. Kd3 {[%clk 0:00:13.3]} 50... Kxa4 {[%clk
0:00:13.6]} 51. Ng4 {[%clk 0:00:13.6]} 51... Kb5 {[%clk 0:00:12.2]} 52. Kc3
{[%clk 0:00:13.9]} 52... a5 {[%clk 0:00:12.1]} 53. Kd3 {[%clk 0:00:13.5]} 53...
a4 {[%clk 0:00:12.2]} 54. Ne3 {[%clk 0:00:13.6]} 54... h2 {[%clk 0:00:10.5]} 55.
Nxf5 {[%clk 0:00:11.8]} 55... h1=Q {[%clk 0:00:10.1]} 56. Nd6+ {[%clk
0:00:09.8]} 56... Kc6 {[%clk 0:00:09.5]} 57. e7 {[%clk 0:00:10.4]} 57... Qd1+
{[%clk 0:00:07.9]} 58. Kc3 {[%clk 0:00:09.8]} 58... Qe1+ {[%clk 0:00:08.3]} 59.
Kd4 {[%clk 0:00:09.9]} 59... Kxd6 {[%clk 0:00:08.8]} 0-1

[Event "Late-Titled-Tuesday-Blitz-June-25-2024"]
[Site "Chess.com"]
[Date "2024.06.25"]
[Round "1"]
[White "SchmakAttack"]
[Black "Frankie_Badacsonyi"]
[Result "1-0"]
[WhiteElo "2869"]
[BlackElo "2488"]
[TimeControl "180+1"]
[EndTime "14:08:11 PDT"]
[Termination "SchmakAttack won by resignation"]

1. d4 {[%clk 0:02:59.8]} 1... d5 {[%clk 0:02:57]} 2. c4 {[%clk 0:02:59.6]} 2...
e6 {[%clk 0:02:55.6]} 3. Nc3 {[%clk 0:02:59.3]} 3... a6 {[%clk 0:02:54.7]} 4.
cxd5 {[%clk 0:02:57.2]} 4... exd5 {[%clk 0:02:55.6]} 5. Bf4 {[%clk 0:02:55.6]}
5... c6 {[%clk 0:02:53.5]} 6. e3 {[%clk 0:02:55.1]} 6... Bd6 {[%clk 0:02:53.1]}
7. Bd3 {[%clk 0:02:48.2]} 7... Bxf4 {[%clk 0:02:51.1]} 8. exf4 {[%clk
0:02:49.1]} 8... Nf6 {[%clk 0:02:49.4]} 9. h3 {[%clk 0:02:44.7]} 9... O-O {[%clk
0:02:48.4]} 10. Nf3 {[%clk 0:02:44.9]} 10... Qd6 {[%clk 0:02:28.8]} 11. Ne5
{[%clk 0:02:43.9]} 11... Nfd7 {[%clk 0:02:25.6]} 12. O-O {[%clk 0:02:38.7]}
12... Nf6 {[%clk 0:01:56.6]} 13. g4 {[%clk 0:02:30.5]} 13... c5 {[%clk
0:01:53.4]} 14. dxc5 {[%clk 0:02:14.2]} 14... Qxc5 {[%clk 0:01:54.3]} 15. Rc1
{[%clk 0:02:14.3]} 15... Qb4 {[%clk 0:01:49.2]} 16. Qf3 {[%clk 0:02:08.5]} 16...
Nc6 {[%clk 0:01:43.7]} 17. g5 {[%clk 0:02:08.5]} 17... Ne4 {[%clk 0:01:32.3]}
18. Nxd5 {[%clk 0:02:06.9]} 18... Nxe5 {[%clk 0:01:30.5]} 19. Qxe4 {[%clk
0:01:22]} 19... Qxe4 {[%clk 0:01:16.4]} 20. Bxe4 {[%clk 0:01:22.9]} 20... Nc6
{[%clk 0:01:12.8]} 21. f5 {[%clk 0:01:14.7]} 21... g6 {[%clk 0:01:04.1]} 22.
fxg6 {[%clk 0:00:42.3]} 22... hxg6 {[%clk 0:01:03.7]} 23. Kg2 {[%clk 0:00:37.2]}
23... Kg7 {[%clk 0:01:03.4]} 24. Kg3 {[%clk 0:00:35.4]} 24... Re8 {[%clk
0:00:57.1]} 25. f3 {[%clk 0:00:32.1]} 25... Rh8 {[%clk 0:00:55.7]} 26. h4 {[%clk
0:00:32]} 26... Nd4 {[%clk 0:00:45.7]} 27. Rc7 {[%clk 0:00:16.5]} 27... Bf5
{[%clk 0:00:41.2]} 28. Rxb7 {[%clk 0:00:13.3]} 28... Rab8 {[%clk 0:00:39.4]} 29.
Rxb8 {[%clk 0:00:13.3]} 29... Rxb8 {[%clk 0:00:40.2]} 30. b3 {[%clk 0:00:14.1]}
30... Re8 {[%clk 0:00:35.9]} 31. Rd1 {[%clk 0:00:11.3]} 31... Ne2+ {[%clk
0:00:30.9]} 32. Kf2 {[%clk 0:00:11.6]} 32... Bxe4 {[%clk 0:00:31.3]} 33. Nf6
{[%clk 0:00:11]} 33... Rh8 {[%clk 0:00:26.4]} 34. fxe4 {[%clk 0:00:07.2]} 34...
Nf4 {[%clk 0:00:24.4]} 35. Kg3 {[%clk 0:00:07.4]} 35... Ne6 {[%clk 0:00:18.3]}
36. Rd7 {[%clk 0:00:07.4]} 36... Rc8 {[%clk 0:00:17.5]} 37. Rd6 {[%clk
0:00:03.5]} 37... a5 {[%clk 0:00:16.9]} 38. Ra6 {[%clk 0:00:03.5]} 38... Rc5
{[%clk 0:00:15.7]} 39. Ra8 {[%clk 0:00:02.8]} 39... Nf8 {[%clk 0:00:13.8]} 40.
Kg4 {[%clk 0:00:03.4]} 40... Rc2 {[%clk 0:00:13]} 41. a4 {[%clk 0:00:03.1]}
41... Rc3 {[%clk 0:00:12.7]} 42. Rb8 {[%clk 0:00:03.8]} 42... Re3 {[%clk
0:00:12.1]} 43. Kf4 {[%clk 0:00:04.2]} 43... Rh3 {[%clk 0:00:12.6]} 44. Kg4
{[%clk 0:00:03.7]} 44... Re3 {[%clk 0:00:12.9]} 45. Ra8 {[%clk 0:00:03.9]} 45...
Rxb3 {[%clk 0:00:12.6]} 46. Rxa5 {[%clk 0:00:04.6]} 46... Rb4 {[%clk 0:00:12.9]}
47. Ra8 {[%clk 0:00:04.9]} 47... Rb1 {[%clk 0:00:11.6]} 48. a5 {[%clk
0:00:05.2]} 48... Rg1+ {[%clk 0:00:10.1]} 49. Kf3 {[%clk 0:00:05.8]} 49... Rh1
{[%clk 0:00:10.4]} 50. Kg3 {[%clk 0:00:06.4]} 50... Rg1+ {[%clk 0:00:10.6]} 51.
Kh2 {[%clk 0:00:07.1]} 51... Ra1 {[%clk 0:00:08.9]} 52. a6 {[%clk 0:00:07.6]}
52... Ra3 {[%clk 0:00:08]} 53. Kg2 {[%clk 0:00:07.7]} 53... Ra4 {[%clk 0:00:05]}
54. Kf3 {[%clk 0:00:07.7]} 54... Ra3+ {[%clk 0:00:05.6]} 55. Kf4 {[%clk
0:00:08]} 55... Ra5 {[%clk 0:00:05.8]} 56. Ke3 {[%clk 0:00:08.1]} 56... Ra4
{[%clk 0:00:05.9]} 57. Kd3 {[%clk 0:00:08.3]} 1-0